fUST/lending_fUST_20250114
["ID","MTS","AMOUNT","RATE_DAILY","PERIOD"]
[348840752,1736802639148,-216.3454,0.00020542,2]
[348840754,1736802639157,-151.0,0.00020542,2]
[348840756,1736802639166,-192.352149,0.00020542,2]
[348840758,1736802639179,-10338.84551742,0.00020631,2]
[348840760,1736802639189,-500.0,0.00020644,11]
[348840762,1736802639199,-165.681604,0.00020684,2]
[348840764,1736802639208,-165.681604,0.00020684,2]
[348840767,1736802639218,-151.0,0.00020708,2]
[348840769,1736802639228,-151.0,0.00020709,2]
[348840771,1736802639237,-181.441042,0.00020709,2]
[348840773,1736802639247,-181.441042,0.00020709,2]
[348840775,1736802639257,-464.84987,0.00020709,2]
[348840777,1736802639266,-464.84987,0.00020709,2]
[348840779,1736802639276,-151.0,0.00020709,2]
[348840781,1736802639286,-267.263959,0.00020709,2]
[348840784,1736802639296,-267.263959,0.00020709,2]
[348840787,1736802639306,-151.0,0.00020714,2]
[348840790,1736802639316,-151.0,0.00020714,2]
[348840793,1736802639325,-151.0,0.00020714,2]
[348840795,1736802639335,-269.411578,0.00020714,2]
[348840797,1736802639345,-269.411578,0.00020714,2]
[348840799,1736802639355,-151.0,0.00020714,2]
[348840803,1736802639366,-216.3454,0.00020726,2]
[348840805,1736802639377,-216.3454,0.00020726,2]
[348840807,1736802639386,-151.0,0.00020726,2]
[348840809,1736802639396,-151.0,0.00020726,2]
[348840811,1736802639406,-151.0,0.00020726,2]
[348840813,1736802639416,-172.846506,0.0002074,2]
[348840816,1736802639426,-165.681604,0.0002075,2]
[348840818,1736802639437,-165.681604,0.0002075,2]
[348840820,1736802639447,-174.565873,0.00020802,2]
[348840822,1736802639457,-174.565873,0.00020802,2]
[348840824,1736802639467,-282.716921,0.00020803,2]
[348840826,1736802639476,-282.716921,0.00020803,2]
[348840828,1736802639486,-335.752034,0.00020803,2]
[348840830,1736802639496,-335.752034,0.00020803,2]
[348840832,1736802639505,-151.0,0.00020803,2]
[348840835,1736802639515,-308.549415,0.00020877,2]
[348840838,1736802639525,-590.125334,0.000209,2]
[348840841,1736802639535,-590.125334,0.000209,2]
[348840843,1736802639546,-151.0,0.000209,2]
[348840845,1736802639556,-151.0,0.000209,2]
[348840847,1736802639565,-151.0,0.000209,2]
[348840849,1736802639575,-166.353903,0.000209,2]
[348840851,1736802639584,-166.353903,0.000209,2]
[348840853,1736802639594,-447.95179658,0.00020937,2]
[348840855,1736802639604,-500.0,0.00020937,2]
[348840857,1736802639613,-500.0,0.00020937,2]
[348840859,1736802639623,-500.0,0.00020937,2]
[348840861,1736802639633,-500.0,0.00020937,2]
[348840863,1736802639642,-486.09847177,0.00020937,2]
[348840865,1736802639653,-500.0,0.00020937,2]
[348840867,1736802639662,-500.0,0.00020937,2]
[348840869,1736802639672,-500.0,0.00020937,2]
[348840871,1736802639681,-172.846506,0.00020959,2]
[348840873,1736802639691,-1753.07110446,0.00020985,2]
[348840875,1736802639700,-3151.04848513,0.00020987,2]
[348840878,1736802639711,-1516.34195527,0.00020992,2]
[348840880,1736802639720,-1516.34195527,0.00020994,2]
[348840882,1736802639731,-1516.34195527,0.00020995,2]
[348840884,1736802639741,-10000.0,0.00021,5]
[348840886,1736802639750,-8696.6834393,0.00021,2]
[348840888,1736802639760,-151.0,0.00021,2]
[348840890,1736802639770,-151.0,0.00021,2]
[348840892,1736802639780,-151.0,0.00021,2]
[348840894,1736802639790,-151.0,0.00021,2]
[348840896,1736802639801,-151.0,0.00021,2]
[348840898,1736802639811,-151.0,0.00021,2]
[348840900,1736802639820,-151.0,0.00021,2]
[348840902,1736802639830,-3000.0,0.00021,2]
[348840904,1736802639839,-282.716921,0.00021,2]
[348840906,1736802639849,-282.716921,0.00021,2]
[348840908,1736802639858,-151.0,0.00021,2]
[348840910,1736802639868,-151.0,0.00021,2]
[348840922,1736802639968,-151.0,0.00021,2]
[348840924,1736802639979,-151.0,0.00021,2]
[348840926,1736802639990,-151.0,0.00021,2]
[348840928,1736802639999,-151.0,0.00021,2]
[348840930,1736802640010,-254.91974,0.00021,2]
[348840932,1736802640019,-174.565873,0.00021,2]
[348840934,1736802640028,-174.565873,0.00021,2]
[348840936,1736802640039,-165.681604,0.00021,2]
[348840939,1736802640050,-165.681604,0.00021,2]
[348840941,1736802640060,-165.681604,0.00021,2]
[348840942,1736802640069,-165.681604,0.00021,2]
[348840945,1736802640078,-216.3454,0.00021,2]
[348840946,1736802640088,-216.3454,0.00021,2]
[348840948,1736802640097,-216.3454,0.00021,2]
[348840950,1736802640107,-216.3454,0.00021,2]
[348840952,1736802640117,-151.0,0.00021,2]
[348840955,1736802640127,-151.0,0.00021,2]
[348840957,1736802640136,-151.0,0.00021,2]
[348840959,1736802640145,-151.0,0.00021,2]
[348840961,1736802640155,-181.441042,0.00021,2]
[348840963,1736802640164,-181.441042,0.00021,2]
[348840965,1736802640174,-181.441042,0.00021,2]
[348840967,1736802640183,-181.441042,0.00021,2]
[348840969,1736802640193,-464.84987,0.00021,2]
[348840971,1736802640203,-464.84987,0.00021,2]
[348840973,1736802640212,-464.84987,0.00021,2]
[348840975,1736802640221,-464.84987,0.00021,2]
[348840977,1736802640231,-151.0,0.00021,2]
[348840979,1736802640240,-151.0,0.00021,2]
[348840981,1736802640250,-590.125334,0.00021,2]
[348840983,1736802640260,-590.125334,0.00021,2]
[348840985,1736802640269,-590.125334,0.00021,2]
[348840988,1736802640279,-590.125334,0.00021,2]
[348840990,1736802640288,-151.0,0.00021,2]
[348840994,1736802640300,-151.0,0.00021,2]
[348840996,1736802640310,-151.0,0.00021,2]
[348840998,1736802640319,-151.0,0.00021,2]
[348841000,1736802640328,-151.0,0.00021,2]
[348841001,1736802640338,-271.254474,0.00021,2]
[348841003,1736802640348,-151.0,0.00021,2]
[348841005,1736802640357,-151.0,0.00021,2]
[348841007,1736802640370,-166.353903,0.00021,2]
[348841009,1736802640380,-166.353903,0.00021,2]
[348841010,1736802640391,-166.353903,0.00021,2]
[348841012,1736802640400,-166.353903,0.00021,2]
[348841014,1736802640410,-269.411578,0.00021,2]
[348841016,1736802640419,-267.263959,0.00021,2]
[348841017,1736802640429,-269.411578,0.00021,2]
[348841019,1736802640439,-267.263959,0.00021,2]
[348841020,1736802640448,-269.411578,0.00021,2]
[348841022,1736802640458,-269.411578,0.00021,2]
[348841024,1736802640467,-151.0,0.00021,2]
[348841026,1736802640477,-267.263959,0.00021,2]
[348841028,1736802640486,-151.0,0.00021,2]
[348841030,1736802640495,-267.263959,0.00021,2]
[348841031,1736802640505,-335.752034,0.00021,2]
[348841033,1736802640514,-335.752034,0.00021,2]
[348841035,1736802640523,-335.752034,0.00021,2]
[348841036,1736802640533,-335.752034,0.00021,2]
[348841038,1736802640543,-151.0,0.00021,2]
[348841040,1736802640552,-151.0,0.00021,2]
[348841042,1736802640561,-3000.0,0.0002101,2]
[348841043,1736802640570,-165.681604,0.0002101,2]
[348841045,1736802640579,-165.681604,0.0002101,2]
[348841047,1736802640589,-216.3454,0.0002101,2]
[348841049,1736802640598,-216.3454,0.0002101,2]
[348841050,1736802640608,-151.0,0.0002101,2]
[348841051,1736802640617,-181.441042,0.0002101,2]
[348841053,1736802640626,-181.441042,0.0002101,2]
[348841055,1736802640636,-464.84987,0.0002101,2]
[348841057,1736802640645,-464.84987,0.0002101,2]
[348841058,1736802640655,-269.411578,0.0002101,2]
[348841060,1736802640664,-267.263959,0.0002101,2]
[348841062,1736802640675,-269.411578,0.0002101,2]
[348841064,1736802640684,-151.0,0.0002101,2]
[348841066,1736802640694,-267.263962,0.0002101,2]
[348841067,1736802640704,-3000.0,0.0002102,2]
[348841069,1736802640713,-244.597804,0.0002102,2]
[348841071,1736802640723,-151.0,0.0002102,2]
[348841073,1736802640732,-3000.0,0.0002103,2]
[348841075,1736802640741,-3000.0,0.0002104,2]
[348841077,1736802640751,-166.353903,0.0002104,2]
[348841079,1736802640760,-166.353903,0.0002104,2]
[348841080,1736802640769,-335.752034,0.0002104,2]
[348841082,1736802640779,-335.752034,0.0002104,2]
[348841084,1736802640788,-151.0,0.0002104,2]
[348841086,1736802640799,-3644.162029,0.0002105,2]
[348841088,1736802640808,-165.681604,0.0002105,2]
[348841089,1736802640817,-165.681604,0.0002105,2]
[348841091,1736802640827,-216.3454,0.0002105,2]
[348841093,1736802640836,-216.3454,0.0002105,2]
[348841095,1736802640845,-151.0,0.0002105,2]
[348841097,1736802640855,-590.125334,0.0002105,2]
[348841098,1736802640864,-590.125334,0.0002105,2]
[348841100,1736802640873,-151.0,0.0002105,2]
[348841102,1736802640883,-151.0,0.0002105,2]
[348841104,1736802640892,-151.0,0.0002105,2]
[348841106,1736802640902,-269.411578,0.0002105,2]
[348841107,1736802640911,-269.411577,0.0002105,2]
[348841109,1736802640921,-151.0,0.0002105,2]
[348841118,1736802641000,-336.51638874,0.00021129,2]
[348841120,1736802641021,-181.441042,0.00021167,2]
[348841122,1736802641030,-181.441042,0.00021167,2]
[348841124,1736802641040,-464.84987,0.00021167,2]
[348841126,1736802641050,-464.84987,0.00021167,2]
[348841128,1736802641059,-172.846506,0.00021178,2]
[348841130,1736802641069,-500.0,0.000212,2]
[348841131,1736802641078,-501.35906016,0.000212,2]
[348841133,1736802641087,-500.0,0.000212,2]
[348841135,1736802641097,-203.86040568,0.000212,2]
[348841137,1736802641107,-500.69303137,0.000212,2]
[348841139,1736802641116,-500.0,0.000212,2]
[348841141,1736802641125,-173.24906831,0.00021214,2]
[348841143,1736802641134,-152.21248671,0.00021214,2]
[348841144,1736802641144,-500.0,0.00021214,2]
[348841146,1736802641153,-155.80432289,0.00021214,2]
[348841148,1736802641163,-514.91167659,0.00021214,2]
[348841150,1736802641172,-152.21334538,0.00021214,2]
[348841152,1736802641182,-194.4100779,0.00021214,2]
[348841154,1736802641190,-501.70911784,0.00021214,2]
[348841156,1736802641200,-268.35517099,0.00021214,2]
[348841157,1736802641209,-266.87254639,0.00021214,2]
[348841159,1736802641219,-268.44517572,0.00021214,2]
[348841161,1736802641228,-151.0,0.00021238,2]
[348841163,1736802641237,-151.0,0.00021238,2]
[348841165,1736802641247,-282.716921,0.0002126,2]
[348841167,1736802641257,-282.716921,0.0002126,2]
[348841169,1736802641267,-151.0,0.0002126,2]
[348841171,1736802641276,-180.430181,0.0002126,2]
[348841172,1736802641285,-335.752034,0.0002126,2]
[348841174,1736802641296,-335.752036,0.0002126,2]
[348841176,1736802641305,-151.0,0.0002126,2]
[348841177,1736802641315,-500.0,0.00021329,13]
[348841178,1736802641324,-151.0,0.00021333,2]
[348841179,1736802641334,-151.0,0.00021333,2]
[348841180,1736802641344,-166.353903,0.00021333,2]
[348841181,1736802641353,-166.353903,0.00021333,2]
[348841183,1736802641367,-151.0,0.00021369,2]
[348841185,1736802641376,-151.0,0.00021369,2]
[348841187,1736802641386,-151.0,0.00021369,2]
[348841189,1736802641395,-174.565873,0.00021369,2]
[348841191,1736802641405,-174.565873,0.00021369,2]
[348841192,1736802641413,-172.846506,0.00021397,2]
[348841194,1736802641423,-216.3454,0.00021441,2]
[348841196,1736802641433,-216.3454,0.00021441,2]
[348841197,1736802641442,-151.0,0.00021441,2]
[348841198,1736802641453,-181.441042,0.00021468,2]
[348841199,1736802641473,-181.441042,0.00021468,2]
[348841200,1736802641492,-464.84987,0.00021468,2]
[348841201,1736802641511,-464.84987,0.00021468,2]
[348841202,1736802641533,-590.125334,0.00021468,2]
[348841204,1736802641554,-590.125334,0.00021468,2]
[348841207,1736802641572,-151.0,0.00021468,2]
[348841210,1736802641593,-294.073817,0.00021468,2]
[348841212,1736802641608,-151.0,0.00021468,2]
[348841214,1736802641622,-501.17272382,0.00021485,2]
[348841217,1736802641642,-1000.0,0.00021485,2]
[348841220,1736802641661,-1000.0,0.00021485,2]
[348841223,1736802641681,-57038.55840651,0.000215,2]
[348841225,1736802641695,-151.0,0.000215,2]
[348841228,1736802641716,-151.0,0.000215,2]
[348841230,1736802641730,-151.0,0.000215,2]
[348841233,1736802641748,-151.0,0.000215,2]
[348841235,1736802641761,-282.716921,0.000215,2]
[348841237,1736802641777,-282.716921,0.000215,2]
[348841240,1736802641794,-237.310582,0.000215,2]
[348841242,1736802641810,-151.0,0.000215,2]
[348841245,1736802641825,-151.0,0.000215,2]
[348841247,1736802641842,-151.0,0.000215,2]
[348841250,1736802641859,-151.0,0.000215,2]
[348841252,1736802641876,-174.565873,0.000215,2]
[348841255,1736802641892,-174.565873,0.000215,2]
[348841257,1736802641908,-165.681604,0.000215,2]
[348841260,1736802641924,-165.681604,0.000215,2]
[348841262,1736802641939,-216.3454,0.000215,2]
[348841265,1736802641956,-216.3454,0.000215,2]
[348841267,1736802641972,-151.0,0.000215,2]
[348841270,1736802641988,-181.441042,0.000215,2]
[348841272,1736802642004,-181.441038,0.000215,2]
[348841275,1736802642021,-464.84987,0.000215,2]
[348841277,1736802642038,-151.0,0.000215,4]
[348841280,1736802642055,-464.84987,0.000215,2]
[348841282,1736802642071,-590.125334,0.000215,2]
[348841284,1736802642088,-590.12533,0.000215,2]
[348841287,1736802642104,-151.0,0.000215,2]
[348841289,1736802642119,-166.353903,0.000215,2]
[348841292,1736802642135,-166.353897,0.000215,2]
[348841294,1736802642155,-151.0,0.000216,4]
[348841297,1736802642171,-5793.0,0.000216,4]
[348841299,1736802642187,-172.846506,0.00021616,2]
[348841302,1736802642203,-604.80965965,0.00021643,2]
[348841305,1736802642220,-159.501593,0.00021661,2]
[348841307,1736802642235,-336.51638874,0.00021738,2]
[348841319,1736802642364,-183.15,0.00021747,2]
[348841321,1736802642375,-500.0,0.00021748,2]
[348841322,1736802642384,-1000.0,0.00021748,2]
[348841325,1736802642394,-478.05500604,0.00021748,2]
[348841326,1736802642404,-151.0,0.000218,4]
[348841328,1736802642413,-172.846506,0.00021836,2]
[348841330,1736802642422,-151.0,0.000219,2]
[348841331,1736802642432,-151.0,0.000219,4]
[348841333,1736802642443,-3096.67805205,0.000219,2]
[348841335,1736802642453,-197.99,0.00021929,2]
[348841338,1736802642463,-13895.54804852,0.00022,2]
[348841339,1736802642472,-69656.60017237,0.00022,7]
[348841340,1736802642481,-799.89905456,0.00022,5]
[348841341,1736802642490,-151.0,0.00022,7]
[348841342,1736802642500,-151.0,0.00022,7]
[348841343,1736802642509,-151.0,0.00022,7]
[348841344,1736802642518,-264.096384,0.00022,7]
[348841345,1736802642528,-151.0,0.00022,7]
[348841346,1736802642538,-151.0,0.00022,7]
[348841347,1736802642548,-1000.0,0.00022,7]
[348841348,1736802642557,-1000.0,0.00022,7]
[348841349,1736802642567,-1000.0,0.00022,7]
[348841350,1736802642576,-1000.0,0.00022,7]
[348841351,1736802642586,-282.716921,0.00022,7]
[348841352,1736802642596,-282.716921,0.00022,7]
[348841354,1736802642606,-1000.0,0.00022,7]
[348841355,1736802642615,-1000.0,0.00022,7]
[348841357,1736802642624,-1000.0,0.00022,7]
[348841358,1736802642633,-1000.0,0.00022,7]
[348841361,1736802642642,-1000.0,0.00022,7]
[348841364,1736802642652,-1000.0,0.00022,7]
[348841367,1736802642661,-1000.0,0.00022,7]
[348841369,1736802642671,-1000.0,0.00022,7]
[348841371,1736802642680,-282.716921,0.00022,7]
[348841373,1736802642689,-1000.0,0.00022,7]
[348841375,1736802642699,-282.716921,0.00022,7]
[348841377,1736802642708,-1000.0,0.00022,7]
[348841379,1736802642717,-1000.0,0.00022,7]
[348841382,1736802642727,-1000.0,0.00022,7]
[348841384,1736802642736,-1000.0,0.00022,7]
[348841385,1736802642745,-1000.0,0.00022,7]
[348841387,1736802642755,-1000.0,0.00022,7]
[348841390,1736802642764,-1000.0,0.00022,7]
[348841392,1736802642773,-1000.0,0.00022,7]
[348841393,1736802642783,-1000.0,0.00022,7]
[348841395,1736802642792,-1000.0,0.00022,7]
[348841397,1736802642804,-1000.0,0.00022,7]
[348841400,1736802642814,-1000.0,0.00022,7]
[348841402,1736802642823,-1000.0,0.00022,7]
[348841404,1736802642832,-1000.0,0.00022,7]
[348841406,1736802642842,-1000.0,0.00022,7]
[348841408,1736802642852,-1000.0,0.00022,7]
[348841410,1736802642862,-1000.0,0.00022,7]
[348841412,1736802642873,-1000.0,0.00022,7]
[348841414,1736802642883,-1000.0,0.00022,7]
[348841415,1736802642892,-1000.0,0.00022,7]
[348841417,1736802642903,-1000.0,0.00022,7]
[348841420,1736802642914,-1000.0,0.00022,7]
[348841422,1736802642924,-1000.0,0.00022,7]
[348841424,1736802642934,-1000.0,0.00022,7]
[348841426,1736802642943,-1000.0,0.00022,7]
[348841428,1736802642953,-1000.0,0.00022,7]
[348841430,1736802642962,-1000.0,0.00022,7]
[348841432,1736802642971,-1000.0,0.00022,7]
[348841434,1736802642981,-1000.0,0.00022,7]
[348841436,1736802642990,-1000.0,0.00022,7]
[348841438,1736802642999,-1000.0,0.00022,7]
[348841440,1736802643009,-1000.0,0.00022,7]
[348841442,1736802643018,-1000.0,0.00022,7]
[348841444,1736802643027,-1000.0,0.00022,7]
[348841446,1736802643037,-1000.0,0.00022,7]
[348841448,1736802643050,-1000.0,0.00022,7]
[348841450,1736802643059,-1000.0,0.00022,7]
[348841452,1736802643069,-1000.0,0.00022,7]
[348841454,1736802643078,-1000.0,0.00022,7]
[348841456,1736802643088,-1000.0,0.00022,7]
[348841458,1736802643097,-1000.0,0.00022,7]
[348841460,1736802643107,-1000.0,0.00022,7]
[348841462,1736802643116,-1000.0,0.00022,7]
[348841464,1736802643127,-1000.0,0.00022,7]
[348841466,1736802643136,-1000.0,0.00022,7]
[348841468,1736802643146,-1000.0,0.00022,7]
[348841470,1736802643155,-1000.0,0.00022,7]
[348841472,1736802643165,-1000.0,0.00022,7]
[348841474,1736802643174,-1000.0,0.00022,7]
[348841476,1736802643184,-1000.0,0.00022,7]
[348841478,1736802643194,-1000.0,0.00022,7]
[348841480,1736802643205,-1000.0,0.00022,7]
[348841483,1736802643214,-1000.0,0.00022,7]
[348841484,1736802643223,-1000.0,0.00022,7]
[348841487,1736802643233,-1000.0,0.00022,7]
[348841488,1736802643242,-1000.0,0.00022,7]
[348841491,1736802643252,-1000.0,0.00022,7]
[348841493,1736802643261,-1000.0,0.00022,7]
[348841495,1736802643271,-1000.0,0.00022,7]
[348841497,1736802643280,-1000.0,0.00022,7]
[348841499,1736802643290,-1000.0,0.00022,7]
[348841501,1736802643303,-1000.0,0.00022,7]
[348841503,1736802643312,-1000.0,0.00022,7]
[348841505,1736802643322,-1000.0,0.00022,7]
[348841507,1736802643332,-1000.0,0.00022,7]
[348841509,1736802643341,-1000.0,0.00022,7]
[348841511,1736802643350,-1000.0,0.00022,7]
[348841513,1736802643361,-1000.0,0.00022,7]
[348841515,1736802643374,-1000.0,0.00022,7]
[348841517,1736802643384,-1000.0,0.00022,7]
[348841519,1736802643394,-1000.0,0.00022,7]
[348841521,1736802643405,-1000.0,0.00022,7]
[348841524,1736802643415,-1000.0,0.00022,7]
[348841526,1736802643424,-1000.0,0.00022,7]
[348841528,1736802643434,-1000.0,0.00022,7]
[348841530,1736802643446,-1000.0,0.00022,7]
[348841532,1736802643456,-1000.0,0.00022,7]
[348841534,1736802643465,-1000.0,0.00022,7]
[348841544,1736802643555,-1000.0,0.00022,7]
[348841546,1736802643570,-1000.0,0.00022,7]
[348841548,1736802643580,-1000.0,0.00022,7]
[348841551,1736802643590,-1000.0,0.00022,7]
[348841553,1736802643600,-1000.0,0.00022,7]
[348841555,1736802643611,-1000.0,0.00022,7]
[348841557,1736802643621,-1000.0,0.00022,7]
[348841559,1736802643631,-1000.0,0.00022,7]
[348841561,1736802643641,-1000.0,0.00022,7]
[348841563,1736802643651,-151.0,0.00022,7]
[348841565,1736802643660,-151.0,0.00022,7]
[348841567,1736802643671,-176.286804,0.00022,7]
[348841570,1736802643690,-174.565873,0.00022,7]
[348841573,1736802643703,-174.565873,0.00022,7]
[348841575,1736802643714,-174.565873,0.00022,7]
[348841577,1736802643724,-174.565873,0.00022,7]
[348841579,1736802643735,-165.681604,0.00022,2]
[348841581,1736802643747,-165.681613,0.00022,2]
[348841583,1736802643757,-216.3454,0.00022,7]
[348841585,1736802643767,-216.345398,0.00022,7]
[348841587,1736802643777,-151.0,0.00022,7]
[348841589,1736802643787,-184.0,0.00022,2]
[348841592,1736802643800,-157.0,0.00022003,2]
[348841594,1736802643810,-157.0,0.00022003,2]
[348841597,1736802643820,-157.0,0.00022003,2]
[348841600,1736802643830,-157.0,0.00022003,2]
[348841602,1736802643840,-157.0,0.00022003,2]
[348841604,1736802643852,-157.0,0.00022003,2]
[348841606,1736802643862,-157.0,0.00022003,2]
[348841608,1736802643872,-157.0,0.00022003,2]
[348841610,1736802643882,-157.0,0.00022003,2]
[348841612,1736802643892,-157.0,0.00022003,2]
[348841615,1736802643903,-157.0,0.00022003,2]
[348841617,1736802643913,-157.0,0.00022003,2]
[348841619,1736802643923,-157.0,0.00022003,2]
[348841621,1736802643933,-157.0,0.00022003,2]
[348841623,1736802643943,-157.0,0.00022003,2]
[348841625,1736802643952,-157.0,0.00022003,2]
[348841627,1736802643962,-157.0,0.00022003,2]
[348841629,1736802643973,-157.0,0.00022003,2]
[348841631,1736802643983,-167.0,0.00022003,2]
[348841633,1736802643992,-167.0,0.00022003,2]
[348841635,1736802644005,-157.0,0.00022003,2]
[348841638,1736802644014,-168.0,0.00022003,2]
[348841640,1736802644024,-161.42,0.00022003,2]
[348841642,1736802644034,-500.0,0.00022014,15]
[348841644,1736802644044,-172.846506,0.00022055,2]
[348841646,1736802644055,-151.0,0.000221,9]
[348841648,1736802644065,-151.0,0.000221,7]
[348841650,1736802644075,-3096.67805201,0.00022222,2]
[348841652,1736802644085,-282.716921,0.00022222,7]
[348841654,1736802644095,-282.716921,0.00022222,7]
[348841656,1736802644105,-182.0,0.0002224,2]
[348841658,1736802644115,-182.0,0.0002224,2]
[348841660,1736802644125,-151.0,0.000223,6]
[348841662,1736802644135,-336.51638874,0.00022348,2]
[348841664,1736802644144,-151.0,0.000224,9]
[348841666,1736802644154,-174.565873,0.00022424,7]
[348841668,1736802644164,-174.565873,0.00022424,7]
[348841670,1736802644174,-1610.1592362,0.00022487,2]
[348841673,1736802644184,-500.0,0.00022487,2]
[348841675,1736802644197,-73872.93066835,0.000225,2]
[348841677,1736802644206,-151.0,0.000225,7]
[348841679,1736802644216,-151.0,0.000225,7]
[348841681,1736802644226,-282.716921,0.000225,7]
[348841683,1736802644236,-282.716921,0.000225,7]
[348841685,1736802644245,-174.565873,0.000225,7]
[348841687,1736802644255,-174.565873,0.000225,7]
[348841689,1736802644265,-151.0,0.000225,9]
[348841691,1736802644274,-196.0,0.00022518,2]
[348841693,1736802644284,-3096.67805201,0.00022544,2]
[348841696,1736802644297,-152.0,0.00022558,2]
[348841698,1736802644307,-152.0,0.00022558,2]
[348841700,1736802644316,-279.022254,0.000226,2]
[348841702,1736802644325,-604.14203932,0.00022694,2]
[348841704,1736802644335,-611.09,0.00022699,17]
[348841706,1736802644346,-151.0,0.000227,9]
[348841708,1736802644356,-151.0,0.000227,6]
[348841710,1736802644369,-152.0,0.00022749,2]
[348841712,1736802644379,-152.0,0.00022749,2]
[348841714,1736802644388,-152.0,0.00022749,2]
[348841716,1736802644398,-152.0,0.00022749,2]
[348841718,1736802644408,-152.0,0.00022749,2]
[348841720,1736802644418,-152.0,0.00022749,2]
[348841722,1736802644428,-152.0,0.00022749,2]
[348841725,1736802644438,-152.0,0.00022749,2]
[348841727,1736802644450,-152.0,0.00022749,2]
[348841729,1736802644460,-152.0,0.00022749,2]
[348841731,1736802644470,-152.0,0.00022749,2]
[348841733,1736802644481,-152.0,0.00022749,2]
[348841735,1736802644491,-152.0,0.00022749,2]
[348841737,1736802644501,-152.0,0.00022749,2]
[348841739,1736802644511,-152.0,0.00022749,2]
[348841741,1736802644520,-152.0,0.00022749,2]
[348841743,1736802644530,-152.0,0.00022749,2]
[348841745,1736802644540,-152.0,0.00022749,2]
[348841747,1736802644551,-152.0,0.00022749,2]
[348841749,1736802644561,-152.0,0.00022749,2]
[348841751,1736802644571,-265.0,0.00022749,2]
[348841753,1736802644581,-500.0,0.0002275,2]
[348841755,1736802644590,-1377.03508657,0.00022788,2]
[348841757,1736802644600,-152.0,0.00022795,2]
[348841759,1736802644609,-152.0,0.00022795,2]
[348841762,1736802644619,-152.0,0.00022795,2]
[348841764,1736802644629,-152.0,0.00022795,2]
[348841766,1736802644638,-152.0,0.00022795,2]
[348841778,1736802644743,-152.0,0.00022795,2]
[348841780,1736802644754,-152.0,0.00022795,2]
[348841782,1736802644763,-152.0,0.00022795,2]
[348841784,1736802644773,-152.0,0.00022795,2]
[348841786,1736802644782,-152.0,0.00022795,2]
[348841788,1736802644792,-152.0,0.00022795,2]
[348841790,1736802644804,-152.0,0.00022795,2]
[348841792,1736802644813,-152.0,0.00022795,2]
[348841794,1736802644823,-152.0,0.00022795,2]
[348841796,1736802644833,-152.0,0.00022795,2]
[348841799,1736802644843,-166.0,0.00022795,2]
[348841801,1736802644852,-166.0,0.00022795,2]
[348841802,1736802644866,-152.0,0.00022795,2]